Cogmind - Beta 13 @@@ ROGUE MODE // 2024.04.01 @ 15:36:34 Player: Olafz Result: Destroyed by Y-45 Defender with Beam Rifle Performance ------------- Evolutions (1) 500 Regions Visited (2) 400 Robots Destroyed (21) 105 Value Destroyed (465) 465 Prototype IDs (0) 0 Alien Tech Used (0) 0 Bonus (11) 11 TOTAL SCORE: 1481 Bonus ------- High Alert Combat Kills 11 Cogmind --------- Core Integrity 0/400 Matter 234/300 Energy 98/100 System Corruption 0% Temperature Cool (9) Movement Core (50) Location -9/Materials Parts ------- > --- POWER (1) -------- (None) > --- PROPULSION (2) --- (None) > --- UTILITY (4) ------ Improved Targeting Computer > --- WEAPON (2) ------- (None) > --- INVENTORY (5) ---- Light Ion Engine Small Storage Unit Particle Gun Peak State ------------ > --- POWER ------------ Ion Engine > --- PROPULSION ------- Aluminum Leg Improved Aluminum Leg > --- UTILITY ---------- Small Storage Unit Structural Scanner Improved Targeting Computer > --- WEAPON ----------- Particle Gun Particle Gun > --- INVENTORY -------- Aluminum Leg Assault Rifle [Rating: 12] Favorites ----------- Power Ion Engine Engine Ion Engine Propulsion Aluminum Leg Leg Aluminum Leg Flight Unit Flight Unit Utility Small Storage Unit Device Structural Scanner Storage Small Storage Unit Processor Improved Targeting Computer Weapon Particle Gun Energy Gun Particle Gun Ballistic Gun Assault Rifle Launcher Grenade Launcher Build | -11 -10 -9 ------- Run | Yrd Mat Mat Slots Evolved 2 | . . 2 Power . | . . . Propulsion . | . . . Utility 2 | . . 2 Weapon . | . . . Parts Attached 27 | 6 6 15 Power 7 | 1 1 5 Engine 7 | 1 1 5 Core . | . . . Reactor . | . . . Propulsion 8 | 2 2 4 Treads . | . . . Leg 7 | 2 2 3 Wheel . | . . . Hover . | . . . Flight 1 | . . 1 Utility 4 | 1 1 2 Device 1 | . 1 . Storage 2 | 1 . 1 Processor 1 | . . 1 Hackware . | . . . Protection . | . . . Artifact . | . . . Weapon 8 | 2 2 4 Energy Gun 4 | 1 1 2 Energy Cannon . | . . . Ballistic Gun 2 | 1 . 1 Ballistic Cannon . | . . . Launcher 2 | . 1 1 Special Weapon . | . . . Impact Weapon . | . . . Slashing Weapon . | . . . Piercing Weapon . | . . . Special Melee Weapon . | . . . Unidentified Prototypes . | . . . Parts Lost 13 | . 6 7 Power 5 | . 1 4 Propulsion 3 | . 2 1 Utility 1 | . . 1 Weapon 4 | . 3 1 Highest Loss Streak 5 | . 5 5 To Critical Strikes . | . . . Average Slot Usage (%) 64 | . 71 57 Engine 7 | . 9 6 Leg 15 | . 23 7 Flight 1 | . . 3 Device 4 | . . 8 Storage 10 | . 14 7 Processor 5 | . . 10 Energy Gun 11 | . 10 13 Ballistic Gun 4 | . 8 . Launcher 2 | . 4 . Naked Turns . | . . . Heaviest Build 17 | 14 14 17 Greatest Support 23 | 20 20 23 Greatest Overweight (x) 3 | . 3 3 Average Overweight (x) . | . . . Largest Inventory Capacity 8 | 8 8 8 Average Capacity 7 | 7 8 6 Most Carried 6 | . 4 6 Average Carried 1 | . 1 2 Final Capacity 8 | 8 8 5 Final Carried 4 | . 4 3 Class Distribution -------------------- 100% | Mutant Dominant Class ---------------- Mutant | -10/Materials Mutant | -9/Materials Resources | -11 -10 -9 ----------- Run | Yrd Mat Mat Matter Collected 530 | 240 158 132 Remotely . | . . . Salvage Created 545 | . 382 163 Parts 31 | . 18 13 Haulers Intercepted . | . . . Recyclers Shooed 1 | . . 1 Parts Field Recycled . | . . . Retrieved Matter . | . . . Parts Self-Destructed . | . . . Prevented . | . . . Kills | -11 -10 -9 ------- Run | Yrd Mat Mat Combat Hostiles Destroyed 13 | . 9 4 Guns 4 | . 2 2 AOE 8 | . 7 1 Classes Destroyed 6 | . 3 3 Worker 1 | . . 1 Builder 5 | . 4 1 Recycler 2 | . 1 1 Swarmer 3 | . . 3 Grunt 9 | . 9 . Sentry 1 | . . 1 Best Kill Streak 10 | . 10 3 Combat Bots Only 7 | . 7 1 Max Kills in Single Turn 2 | . 2 1 Gunslinging . | . . . Exploded 2 | . 2 1 Melee . | . . . Uniques/NPCs Destroyed . | . . . Combat | -11 -10 -9 -------- Run | Yrd Mat Mat Hostile Shots Fired 182 | . 91 91 Missed 56 | . 29 27 Damage Taken 1685 | . 858 827 Core 632 | . 225 407 Absorbed by Shields . | . . . Core Remaining (%) 55 | 100 10 . Volleys Fired 53 | . 26 27 Largest 2 | . 2 2 Hottest 130 | . 70 130 Shots Fired 81 | . 42 39 Gun 64 | . 28 36 Cannon . | . . . Launcher 17 | . 14 3 Special . | . . . Kinetic 11 | . 11 . Thermal 48 | . 12 36 Explosive 17 | . 14 3 Electromagnetic 5 | . 5 . Robot Hit Streak 12 | . 12 8 Robot Miss Streak 3 | . 3 2 Penetration Max . | . . . Secondary Targets . | . . . Shots Hit Robots 53 | . 27 26 Core Hits 35 | . 25 10 Critical Kills . | . . . Critical Parts Destroyed . | . . . Critical Strikes . | . . . Melee Attacks . | . . . Impact . | . . . Slashing . | . . . Piercing . | . . . Sneak Attacks . | . . . Combat Hostiles . | . . . Follow-up Attacks . | . . . Damage Inflicted 1864 | . 1343 521 Guns 643 | . 229 414 Cannons . | . . . Explosions 1197 | . 1103 94 Melee . | . . . Ramming 24 | . 11 13 Kinetic 126 | . 126 . Thermal 502 | . 88 414 Explosive 1197 | . 1103 94 Electromagnetic 15 | . 15 . Impact . | . . . Slashing . | . . . Piercing . | . . . Highest Corruption 7 | . 7 . Average Corruption 7 | . 7 . Corruption Purged . | . . . Corruption Blocked . | . . . Effects 1 | . 1 . Heat Flow Errors 1 | . 1 . Overload Shots . | . . . Overflow Damage 22 | . 22 . Projectiles . | . . . Explosions 22 | . 22 . Melee . | . . . Knockbacks . | . . . Impact . | . . . Kinetic . | . . . Secondary . | . . . Self-Inflicted Damage 121 | . 69 52 Shots 6 | . 3 3 Rammed 1 | . . 1 Targets Rammed 4 | . 3 1 Kicked 3 | . 3 . Crushed . | . . . Highest Temperature 316 | . 180 316 Average Temperature 111 | . 21 154 Received Heat Transfer 471 | . 378 93 Effects 4 | . . 4 Interference 4 | . . 4 Siege Activations . | . . . Robots Corrupted . | . . . Combat Hostiles . | . . . Parts Fried . | . . . Impact Corruptions . | . . . Robots Melted 1 | . . 1 Combat Hostiles 1 | . . 1 Parts Melted 3 | . . 3 Heat Transferred 1199 | . 200 999 Parts Sabotaged . | . . . Parts Stolen . | . . . Parts Stripped . | . . . Power Chain Reactions . | . . . Alert | -11 -10 -9 ------- Run | Yrd Mat Mat Peak Influence 442 | . 442 352 Initial 178 | . . 178 Average 199 | . 183 264 Maximum Alert Level 2 | . 2 1 Low Security (%) 49 | 100 60 26 Level 1 41 | . 18 73 Level 2 9 | . 20 . Level 3 . | . . . Level 4 . | . . . Level 5 . | . . . High Security . | . . . Max Security . | . . . Squads Dispatched 5 | . 3 2 Investigation 4 | . 2 2 Extermination . | . . . Reinforcement 1 | . 1 . Assault . | . . . Garrison . | . . . Intercept . | . . . Searches Triggered . | . . . Construction Impeded . | . . . Haulers Reinforced . | . . . Active Scanning Responses . | . . . Cargo Convoy Interrupts . | . . . Stealth | -11 -10 -9 --------- Run | Yrd Mat Mat Distress Signals 2 | . 2 . Communications Jammed . | . . . Distress Signals . | . . . Times Spotted 34 | . 20 14 Peak Tracking Total 10 | . 10 6 Tactical Retreats 2 | . 1 1 Traps | -11 -10 -9 ------- Run | Yrd Mat Mat Traps Triggered 2 | . 1 1 Indirectly . | . . . Trap Hack Attempts . | . . . Triggered . | . . . Disarmed . | . . . Reprogrammed . | . . . Reused . | . . . Traps Extracted . | . . . Installed . | . . . Triggered . | . . . Machines | -11 -10 -9 ---------- Run | Yrd Mat Mat Machines Disabled 2 | . 2 . Max in Single Turn 1 | . 1 . Machines Repaired . | . . . Machines Dismantled . | . . . Machines Sabotaged . | . . . Overloaded Fab Kills . | . . . Hacking | -11 -10 -9 --------- Run | Yrd Mat Mat Machines Accessed 2 | . 1 1 Terminals 1 | . . 1 Fabricators . | . . . Repair Stations . | . . . Recycling Units 1 | . 1 . Scanalyzers . | . . . Garrison Access . | . . . Total Hacks 5 | . 1 4 Successful 2 | . 1 1 Failed 3 | . . 3 Catastrophic . | . . . Database Lockouts . | . . . Manual 3 | . 1 2 Terminals 4 | . . 4 Fabricators . | . . . Repair Stations . | . . . Recycling Units 1 | . 1 . Scanalyzers . | . . . Garrison Access . | . . . Terminal Hacks 1 | . . 1 Branch Access Points 1 | . . 1 Fabricator Hacks . | . . . Repair Station Hacks . | . . . Recycling Unit Hacks . | . . . Scanalyzer . | . . . Garrison Access Hacks . | . . . Unauthorized Hacks 1 | . 1 . Terminals . | . . . Fabricators . | . . . Repair Stations . | . . . Recycling Units 1 | . 1 . Tunnel 1 | . 1 . Scanalyzers . | . . . Garrison Access . | . . . Data Cores Recovered . | . . . Used . | . . . Hacking Detections 2 | . . 2 Full Trace Events 1 | . . 1 Feedback Events . | . . . Feedback Blocked . | . . . Robot Schematics Acquired . | . . . Robots Built . | . . . Authchips . | . . . Time . | . . . Total Robot Build Rating . | . . . Part Schematics Acquired . | . . . Parts Built . | . . . Authchips . | . . . Time . | . . . Total Part Build Rating . | . . . Parts Repaired . | . . . Time . | . . . Parts Recycled . | . . . Recycled Matter . | . . . Retrieved Matter . | . . . Retrieved Components . | . . . Parts Scanalyzed . | . . . Part Schematics Acquired . | . . . Parts Damaged . | . . . Bothacking | -11 -10 -9 ------------ Run | Yrd Mat Mat Used RIF Installer . | . . . Robots Hacked . | . . . Non-combat . | . . . Combat . | . . . Robot Hacks Applied . | . . . Relay Couplers Released . | . . . Fabnet Peak Effective % . | . . . Robots Rewired . | . . . Allies Hacked . | . . . Hacks Repelled . | . . . Allies | -11 -10 -9 -------- Run | Yrd Mat Mat Total Allies . | . . . Largest Group . | . . . Highest-Rated Group . | . . . Highest-Rated Ally . | . . . Total Orders . | . . . Ally Attacks . | . . . Total Damage . | . . . Kills . | . . . Allies Corrupted . | . . . Allies Melted . | . . . Intel | -11 -10 -9 ------- Run | Yrd Mat Mat Robot Analysis Total . | . . . Derelict Logs Recovered . | . . . Drone Launches . | . . . Drone Recoveries . | . . . Exploration | -11 -10 -9 ------------- Run | Yrd Mat Mat Turns Passed 790 | 85 353 352 Spaces Moved 626 | 73 223 330 Core 199 | 16 42 141 Treads . | . . . Legs 317 | 57 181 79 Wheels . | . . . Hover . | . . . Flight 110 | . . 110 Fastest Speed 40 | 50 100 40 Average Speed 96 | 104 121 78 Slowest Speed 280 | 120 200 280 Overloaded Moves . | . . . Propulsion Burnouts . | . . . Robots Hopped . | . . . Cave-ins Triggered 1 | . 1 . Exploration Rate (%) 22 | 3 37 28 Regions Visited 2 Branch Regions . Pre-discovered Areas 1 | . 1 . Known Exits Taken . | . . . Unknown Exits Taken 2 | 1 1 . Scrap Searched . | . . . Spaces Dug . | . . . Terrain Destroyed 80 | . 78 2 Melee . | . . . Projectile . | . . . AOE 80 | . 78 2 Terrain Rammed . | . . . Walls Destroyed . | . . . Machines Disabled . | . . . Actions | -11 -10 -9 --------- Run | Yrd Mat Mat Total 721 | 78 259 384 Wait . | . . . Move 623 | 72 221 330 Hop . | . . . Pick Up . | . . . Fast Attach 20 | 6 4 10 Attach 3 | . . 3 Detach 8 | . 2 6 Swap 4 | . 2 2 Drop 5 | . . 5 Fire 53 | . 26 27 Melee . | . . . Ram 1 | . . 1 Kick 3 | . 3 . Crush . | . . . Escape Stasis 1 | . 1 . Rewire . | . . . Trap . | . . . Miscellaneous . | . . . Route ------- -11/Scrapyard -10/Materials -9/Materials (discovered 2 exits: Min x2) History --------- Turn | Location | Event 9 | -11/Scrapyard | Discovered new exit (range 16) 86 | -11/Scrapyard | Entered Materials 319 | -10/Materials | Build established: Mutant 332 | -10/Materials | Destroyed 7 combat bots 382 | -10/Materials | Core integrity fell below 50% 405 | -10/Materials | Crushed by falling debris 415 | -10/Materials | Core integrity fell below 20% 435 | -10/Materials | Discovered new exit (range 3) 436 | -10/Materials | Lost 5 parts (1p2n2w) 439 | -10/Materials | Entered another Materials area 439 | -9/Materials | Evolved 2 slots: Utility x2 487 | -9/Materials | Identified exit to Mines 719 | -9/Materials | Core integrity fell below 50% 726 | -9/Materials | Core integrity fell below 20% 763 | -9/Materials | Lost 5 parts (2p1n1u1w) 791 | -9/Materials | Destroyed by Y-45 Defender with Beam Rifle Last Messages --------------- 00712_ Flight Unit destroyed. 00714_ Acquired Mni. Grenade Launcher. 00720_ S-10 Pest destroyed. 00724_ Fusion Modulator explodes. 00724_ Mni. Grenade Launcher destroyed. 00724_ Structural Scanner destroyed. 00725_ Acquired Lgt. Ion Engine. 00729_ Acquired 17 matter. 00731_ Acquired 18 matter. 00732_ U-05 Engineer lays Concrete. 00732_ Acquired 55 matter. 00732_ Lgt. Ion Engine destroyed. 00733_ U-05 Engineer lays Concrete. 00768_ Triggered Alarm Trap. 00768_ An alarm sounds. 00768_ ALERT: Alarm triggered, dispatching investigation squad. 00768_ K-01 Serf cleans the Hadron Collector. 00780_ K-01 Serf destroyed. 00781_ K-01 Serf collects debris. 00783_ Slammed into U-05 Engineer. Map ----- +----------------------------------------------------+ | | | | | | | | | | | | | | | | | | | | | | | | | | | | | | | ?????????????????????????????????????????????????? | | ?????????????????????????????????????????????????? | | ??????????????????????????????????########???????? | | ??????????????????????????????????? #???????? | | ??????????????????????????????????? #???????? | | ???????????????????????????????????? """ ????????? | | ??????????????????????????????????#? """ ????????? | | ??????????????????????????????????# """?????????? | | ???????????????????????????????????? ?????????? | | ?????????? k#################+####??????? | | ?????????? Y @ l #??????? | | ?????????? #################### #??????? | | ????????????????????????#########???????# #??????? | | ????????????????????????? #???????# #??????? | | ?????????????????????????"" """ ######### ##?????? | | ?????????????????????????"" """ # #?????? | | ?????????????????????????"" """ + +?????? | | ????????????????????????""" """ # #?????? | | ??????????????????????# """ """ ####+### #?????? | | ??????????????????????# ## # #?? | | ??????????????????????# ## """ # % #??#### | | ??????????????????????############ """ # #??## | | ?????????????????????????????????# """ # #??## | | ?????????????????????????????????# """ # #??## | | ?????????????????????????????????# # #??## | | ?????????????????????????????########### #??## | | ?????????????????????????????# # #??## | | ?????????????????????????????# """" # ####### | | ?????????????????????????????# ""S"" # ####### | | ?????????????????????????????# "" "" # | | ?????????????????????????????# + | | ?????????????????????????????# # | | ?????????????????????????????# # ####### | | ?????????????????????????????# # #### | | ???????????????????? #######+##+#### #?## | +----------------------------------------------------+ Best States ------------- Heat Dissipation 28 Energy Generation 10 Energy Capacity 250 Matter Stores 292 Matter Capacity 300 Sight Range 16 Terrain Scan Density 10 Evasion (%) 62 Targeting Accuracy 6 Item Schematics ----------------- None Robot Schematics ------------------ None Fabricated ------------ Nothing Alien Tech Used ----------------- None Achievements -------------- Brute Force Challenges ------------ None Game ------ Seed NullTransportBeam Manual? 0 Play Time 00:16:30 Cumulative 6.9 hours Start 2024.04.01 @ 15:20:07 End 2024.04.01 @ 15:36:34 Sessions 1 Manual Loads 0 Difficulty Rogue Special Mode None Game No. 15 Rogue 13 Adventurer 2 Explorer 0 Win Type - Total 0 Types 0/0/0/0/0/0/0/0/0 Lore% 14 Gallery% 13 Achievement% 15 Wizard Run 0 Options --------- Layout 0 ASCII 0 Keyboard 1 Movement Arrows Keybinds 0 Fullscreen 2 Font 18/SmallcapsGlow Map View 76x50 Zoom Use 0% Tactical HUD 1 Map Filters NONE Filters NONE Steam 1 RUN: 16445561-6689-4dce-86c5-dd8fe7d0d59a